bitfinex/quotes_ETHUSD_20241009
["timestamp","ask_amount","ask_price","bid_price","bid_amount"]
[1728509912723,1.76910323,2373.3,2373.1,0.22737342]
[1728509912724,1.32682742,2373.3,2373.1,0.22737342]
[1728509913012,1.32682742,2373.3,2373.1,8.6549281]
[1728509913219,1.32682742,2373.3,2373.2,4.29797773]
[1728509913391,1.32682742,2373.3,2373.1,5.22235281]
[1728509913392,1.32682742,2373.4,2373.1,9.43615281]
[1728509913596,1.32682742,2373.4,2373.1,8.57066]
[1728509914117,1.76910323,2373.5,2373.1,8.57066]
[1728509914118,1.32682742,2373.5,2373.1,8.57066]
[1728509914319,1.32682742,2373.5,2373.4,4.21336]
[1728509914506,2.09402742,2373.7,2373.3,4.2135]
[1728509914714,1.32682742,2373.6,2373.3,4.2135]
[1728509915080,0.7672,2373.6,2373.3,4.2135]
[1728509915280,0.7672,2373.6,2372.9,4.21412]
[1728509915281,6.05769252,2373.4,2372.9,4.21412]
[1728509915631,0.7672,2373.2,2372.8,4.21438]
[1728509916321,0.7672,2373.2,2372.6,0.1431]
[1728509916322,2.61144252,2373.2,2372.6,0.1431]
[1728509916524,2.61144252,2373.2,2372.6,4.21461]
[1728509916525,3.93826994,2373.2,2372.6,4.21461]
[1728509917035,10.27261252,2373.0,2372.5,4.21495]
[1728509917236,0.7745,2372.9,2372.5,4.21495]
[1728509918847,0.7745,2372.9,2372.6,4.21478]
[1728509921981,1.32682742,2373.0,2372.6,4.21478]
[1728509922468,0.06471153,2372.9,2372.7,4.2146]
[1728509925085,0.8108,2373.1,2372.7,4.2146]
[1728509925086,0.0647281,2372.8,2372.7,4.2146]
[1728509925442,0.8108,2373.1,2372.7,4.2146]
[1728509925648,1.39038338,2373.0,2372.7,4.2146]
[1728509926736,0.0647281,2373.0,2372.7,4.2146]
[1728509926963,1.39038338,2373.0,2372.7,4.2146]
[1728509927782,0.0647281,2373.0,2372.7,4.2146]
[1728509929403,1.39038338,2373.0,2372.7,4.2146]
[1728509931208,1.39038338,2373.0,2372.8,4.21439]
[1728509931415,0.0647281,2373.0,2372.8,4.21439]
[1728509932491,0.0647281,2373.0,2372.9,4.29853121]
[1728509933114,1.32565528,2373.2,2373.0,4.21402]
[1728509933271,2.09335528,2373.3,2373.0,4.21402]
[1728509933472,1.32565528,2373.2,2373.0,4.21402]
[1728509934004,2.09335528,2373.3,2373.0,4.21402]
[1728509934307,1.32565528,2373.3,2373.0,4.21402]
[1728509935507,1.32565528,2373.3,2373.1,4.2138]
[1728509936400,1.32565528,2373.4,2373.1,5.070892]
[1728509936839,1.32565528,2373.4,2373.1,4.2138]
[1728509937036,1.32565528,2373.4,2373.2,4.21371]
[1728509937255,1.32565528,2373.4,2373.2,8.42732]
[1728509937256,0.06477781,2373.3,2373.2,8.42732]
[1728509938018,1.32565528,2373.6,2373.3,0.1431]
[1728509938215,1.32565528,2373.7,2373.5,4.21318]
[1728509938421,1.32565528,2373.7,2373.4,4.29761801]
[1728509938750,14.55565528,2373.8,2373.6,4.213]
[1728509938916,13.23,2373.8,2373.7,4.21283]
[1728509939323,13.23,2373.8,2373.7,4.35593]
[1728509939823,13.23,2374.0,2373.8,4.21263]
[1728509940215,17.1717978,2374.1,2373.8,4.21263]
[1728509940423,13.23,2374.2,2373.8,5.069503]
[1728509940632,13.23,2374.2,2374.0,4.2122]
[1728509943971,13.23,2374.3,2374.0,4.2122]
[1728509944143,13.23,2374.4,2374.0,4.2122]
[1728509944552,13.23,2374.4,2374.0,4.2641458]
[1728509945159,13.23,2374.4,2374.0,4.29643732]
[1728509948856,13.23,2374.4,2374.0,4.29643732]
[1728509952393,0.06599272,2374.3,2374.0,4.29643732]
[1728509952868,13.29599272,2374.3,2374.1,4.21211]
[1728509953789,0.06599272,2374.3,2374.1,4.21211]
[1728509954685,0.06599272,2374.3,2374.1,4.35521]
[1728509956494,0.06599272,2374.3,2374.1,0.1431]
[1728509956683,0.06599272,2374.3,2374.0,0.08423732]
[1728509956684,0.06599272,2374.3,2374.0,4.29650732]
[1728509958014,5.00462,2374.5,2374.0,4.29650732]
[1728509958222,0.06610312,2374.2,2374.0,4.29650732]
[1728509958502,0.06610312,2374.1,2374.0,4.29650732]
[1728509958681,5.00462,2374.5,2374.0,4.29650732]
[1728509958884,0.06610312,2374.4,2374.0,4.29650732]
[1728509961705,4.27773312,2374.4,2374.0,0.08423732]
[1728509961920,4.21238,2374.0,2373.5,0.1431]
[1728509962211,0.758,2373.7,2373.3,4.35663]
[1728509962380,4.97091,2373.7,2373.2,4.21361]
[1728509962579,0.758,2373.7,2373.2,4.21361]
[1728509962880,0.0660976,2373.6,2373.2,4.21361]
[1728509963209,6.12337012,2373.6,2373.1,4.2138]
[1728509963407,0.7867,2373.4,2373.0,8.42795]
[1728509963566,0.7867,2373.4,2372.8,0.06322197]
[1728509963567,4.21362,2373.3,2372.8,4.21442]
[1728509963906,5.3852077,2373.3,2372.8,4.21442]
[1728509965506,1.1715877,2373.3,2372.7,4.21459]
[1728509965711,1.1715877,2373.3,2372.8,4.21441]
[1728509965712,5.3852177,2373.3,2372.8,4.21441]
[1728509968319,4.21383,2373.2,2372.7,8.4291]
[1728509968618,4.21383,2373.2,2372.8,4.21438]
[1728509968793,1.1715877,2373.3,2372.8,4.21438]
[1728509968794,0.0657774,2373.1,2372.8,4.21438]
[1728509969305,0.0657774,2373.0,2372.8,4.21438]
[1728509969510,1.08343429,2373.3,2372.8,4.21438]
[1728509969715,0.0652418,2373.2,2372.8,4.21438]
[1728509970218,5.29706429,2373.3,2372.7,4.21451]
[1728509970533,5.29706429,2373.3,2372.8,4.21442]
[1728509970731,0.0652418,2373.2,2372.8,4.21442]
[1728509971095,5.29706429,2373.3,2372.8,4.21442]
[1728509971323,0.0652418,2373.2,2372.8,4.21442]
[1728509971525,1.28591966,2373.2,2372.8,4.21442]
[1728509971736,0.8307,2373.1,2372.8,4.21442]
[1728509971892,0.8959418,2373.1,2372.8,4.21442]
[1728509972218,0.8959418,2373.1,2372.7,4.21445]
[1728509972417,0.8959418,2373.1,2372.7,8.42896]
[1728509972614,0.8959418,2373.1,2372.8,4.21441]
[1728509974117,0.8959418,2373.1,2372.7,4.21445]
[1728509974720,0.8959418,2373.1,2372.8,4.21436]
[1728509975029,0.8959418,2373.1,2372.7,4.21445]
[1728509975030,5.92732102,2373.1,2372.7,4.21445]
[1728509975728,1.71340102,2373.1,2372.7,4.21445]
[1728509975891,0.8959418,2373.1,2372.8,4.21437]
[1728509977906,0.8959418,2373.1,2372.9,4.21415]
[1728509978204,0.0652418,2373.1,2373.0,4.21407]
[1728509978609,0.8118,2373.4,2373.2,4.2137]
[1728509978801,0.8118,2373.4,2373.2,4.21363]
[1728509979428,0.8118,2373.4,2373.2,8.42727]
[1728509980134,0.8118,2373.4,2373.2,4.21363]
[1728509980426,0.8118,2373.4,2373.2,4.21362]
[1728509980627,0.8118,2373.4,2373.2,8.42725]
[1728509980828,2.62064252,2373.6,2373.3,4.21354]
[1728509982396,0.06502089,2373.5,2373.3,4.21354]
[1728509984022,0.06502089,2373.5,2373.2,4.21369]
[1728509989399,6.77867341,2373.6,2373.2,4.21369]
[1728509989539,0.06285353,2373.4,2373.2,4.21369]
[1728509989846,6.77867341,2373.6,2373.2,4.21369]
[1728509990346,0.06285353,2373.5,2373.2,4.21369]
[1728509996654,0.06285353,2373.5,2373.2,5.0636771]
[1728509997375,0.06285353,2373.5,2373.2,4.21369]
[1728509998646,0.06285353,2373.5,2373.1,4.28597099]
[1728510000277,6.05761252,2373.4,2373.0,4.21403]
[1728510000480,0.06294744,2373.3,2373.1,4.21389]
[1728510000708,0.7764,2373.6,2373.2,5.199512]
[1728510000981,1.84424252,2373.4,2373.0,4.21395]
[1728510001279,2.60054252,2373.2,2372.9,4.21423]
[1728510001488,0.06296401,2373.1,2372.9,4.21423]
[1728510003179,0.06296401,2373.1,2372.8,4.21435]
[1728510010216,1.38861929,2373.1,2372.8,4.21435]
[1728510010522,0.06296401,2373.1,2372.9,4.21425]
[1728510012067,1.38861929,2373.1,2372.8,4.2144]
[1728510012741,0.8175,2372.8,2372.3,0.88218483]
[1728510012945,0.8175,2372.8,2372.2,4.21535]
[1728510012946,0.8175,2372.5,2372.2,4.21535]
[1728510013137,0.0626657,2372.4,2372.2,4.21535]
[1728510013918,2.14315528,2372.7,2372.2,4.21535]
[1728510014146,0.0626657,2372.6,2372.2,8.43075]
[1728510014771,1.90690822,2372.6,2372.2,8.43075]
[1728510015119,1.90690822,2372.6,2372.2,4.21535]
[1728510016352,1.90690822,2372.6,2372.2,8.43076]
[1728510021659,4.989,2372.3,2371.9,0.21603023]
[1728510021861,4.989,2372.3,2371.8,4.21604]
[1728510021862,1.84424252,2372.1,2371.8,4.21604]
[1728510022219,0.0619031,2372.0,2371.9,4.21602]
[1728510024621,0.0619031,2372.0,2371.8,4.21604]
[1728510024822,1.84424252,2371.9,2371.8,4.21604]
[1728510025236,1.90600188,2371.9,2371.8,4.21604]
[1728510027235,4.98791,2371.8,2371.4,4.21674]
[1728510027542,1.84424252,2371.5,2371.4,4.21674]
[1728510028025,1.90594106,2371.5,2371.4,4.21674]
[1728510028231,1.90594106,2371.5,2371.4,4.42971296]
[1728510041201,1.90594106,2371.5,2371.4,0.21297296]
[1728510041707,1.90594106,2371.5,2371.3,4.21705]
[1728510044819,1.90594106,2371.5,2371.2,4.21716]
[1728510044978,1.90594106,2371.5,2371.4,4.21691]
[1728510048700,4.21771,2371.0,2370.7,0.66057673]
[1728510049050,1.84424252,2370.8,2370.6,4.2182]
[1728510049242,1.84424252,2370.8,2370.5,4.21843]
[1728510049423,0.06054803,2370.7,2370.5,4.21842]
[1728510049794,1.84424252,2371.0,2370.5,8.43682]
[1728510049998,0.06054803,2370.9,2370.6,0.21290561]
[1728510050235,0.06054803,2370.9,2370.6,4.43121561]
[1728510051229,0.06054803,2370.9,2370.6,4.4758823]
[1728510051600,0.06054803,2370.9,2370.6,4.51557357]
[1728510053426,0.06054803,2370.9,2370.7,4.21814]
[1728510054745,0.06054803,2370.9,2370.6,4.43121561]
[1728510054945,0.06054803,2370.9,2370.8,5.03348]
[1728510055146,0.06054803,2370.9,2370.8,5.66782329]
[1728510055450,1.84424252,2371.4,2371.1,4.21734]
[1728510057451,1.84424252,2371.4,2371.0,4.21762]
[1728510057452,1.84424252,2371.2,2371.0,4.21762]
[1728510057609,1.84424252,2371.2,2371.0,4.21752]
[1728510057809,0.06001121,2371.1,2371.0,4.21752]
[1728510060351,1.84424252,2371.4,2371.1,4.21739]
[1728510060553,1.84424252,2371.4,2371.1,4.30172885]
[1728510060847,0.06001121,2371.3,2371.1,4.30172885]
[1728510061051,0.06001121,2371.3,2371.2,4.21727]
[1728510061213,0.06001121,2371.3,2371.2,4.30160697]
[1728510061421,0.7932,2371.5,2371.3,4.21703]
[1728510062354,1.84424252,2371.6,2371.3,4.21703]
[1728510062912,1.84424252,2371.6,2371.4,4.21689]
[1728510064590,1.84424252,2371.8,2371.4,4.21689]
[1728510064736,1.84424252,2371.8,2371.5,4.21673]
[1728510065821,0.8226,2371.9,2371.5,5.0601]
[1728510066168,5.01225,2371.5,2371.0,4.21754]
[1728510066320,1.84424252,2371.3,2371.0,4.21754]
[1728510069761,6.06143252,2371.3,2370.8,4.21784]
[1728510069962,4.2173,2371.2,2370.8,4.21784]
[1728510071184,4.2173,2371.2,2370.8,8.43573]
[1728510071688,2.66232082,2371.3,2370.8,8.43573]
[1728510071889,6.87943082,2371.3,2370.8,8.43573]
[1728510072200,0.05834806,2371.2,2370.8,8.43573]
[1728510072373,6.87943082,2371.3,2370.8,8.43573]
[1728510072899,0.05834806,2371.2,2370.8,8.43573]
[1728510073103,11.09661082,2371.3,2370.8,4.21784]
[1728510073302,11.09661082,2371.3,2370.6,0.21201144]
[1728510073303,5.04738,2371.0,2370.6,0.21201144]
[1728510073503,1.84424252,2370.7,2370.4,4.2186]
[1728510073666,1.84424252,2370.7,2370.2,8.65248108]
[1728510073865,6.06248252,2370.7,2370.2,4.43355108]
[1728510074101,7.09635137,2370.7,2370.2,4.43355108]
[1728510074307,0.05827599,2370.6,2370.2,4.43355108]
[1728510074505,0.05827599,2370.6,2370.2,8.65250108]
[1728510074868,0.05827599,2370.6,2370.3,3.0]
[1728510075207,2.67394252,2370.5,2370.0,4.21927]
[1728510075366,0.05758292,2370.4,2370.0,4.21927]
[1728510075563,0.05758292,2370.4,2370.0,8.43858]
[1728510075801,0.05758292,2370.4,2370.1,4.2192]
[1728510076377,0.05758292,2370.4,2370.2,4.21902]
[1728510076866,0.05758292,2370.4,2370.3,4.21887]
[1728510077416,6.06241252,2370.7,2370.3,4.21887]
[1728510077706,0.8216063,2370.6,2370.3,4.21887]
[1728510077873,0.87912266,2370.6,2370.3,4.21887]
[1728510078906,0.87912266,2370.6,2370.1,4.21914]
[1728510079208,0.87912266,2370.6,2370.2,4.21903]
[1728510080117,0.7967,2370.4,2370.1,4.21912]
[1728510080272,0.7967,2370.4,2370.2,4.21903]
[1728510080473,0.05749972,2370.3,2370.2,4.21903]
[1728510084807,0.7642,2370.6,2370.2,4.21903]
[1728510084987,0.05749972,2370.3,2370.2,4.21903]
[1728510085402,0.05748863,2370.3,2370.2,4.21903]
[1728510085776,0.7642,2370.6,2370.2,4.21903]
[1728510085986,0.05748863,2370.3,2370.2,4.21903]
[1728510087224,0.7642,2370.6,2370.2,4.21903]
[1728510087379,0.05748863,2370.3,2370.2,4.21903]
[1728510088018,0.7642,2370.6,2370.2,4.21903]
[1728510088393,0.7642,2370.6,2370.3,4.21884]
[1728510088594,0.05748863,2370.5,2370.3,4.21884]
[1728510092306,0.05748863,2370.5,2370.2,8.43796]
[1728510092797,0.05748863,2370.5,2370.2,4.21893]
[1728510093008,0.05748863,2370.5,2370.3,4.21885]
[1728510094187,0.05748863,2370.5,2370.2,4.21893]
[1728510094818,0.05748863,2370.5,2370.2,8.43786]
[1728510095938,0.05748863,2370.5,2370.3,4.21885]
[1728510096145,0.05748863,2370.5,2370.2,4.21893]
[1728510096146,0.05748863,2370.5,2370.2,8.43789]
[1728510096945,0.05748863,2370.5,2370.2,4.21893]
[1728510097121,2.59014327,2370.5,2370.0,4.21923]
[1728510097321,6.12032115,2370.5,2370.0,4.21923]
[1728510098949,6.12032115,2370.5,2370.1,4.2192]
[1728510099303,1.90173115,2370.5,2370.2,4.21904]
[1728510099650,0.05748863,2370.5,2370.2,4.21904]
[1728510100354,0.05748863,2370.5,2370.2,8.43797]
[1728510101144,0.05748863,2370.5,2370.2,4.21893]
[1728510101321,0.05748863,2370.5,2370.2,8.4379]
[1728510101717,0.05748863,2370.5,2370.2,4.21893]
[1728510105371,0.74589975,2370.5,2370.2,4.21893]
[1728510106975,2.59014227,2370.5,2370.2,4.21893]
[1728510107150,0.8003,2370.4,2370.2,4.21893]
[1728510107658,0.0574221,2370.3,2370.2,4.21893]
[1728510111704,1.90166462,2370.3,2370.1,4.21922]
[1728510111999,0.81831367,2370.3,2370.1,4.21922]
[1728510112220,0.803,2370.0,2369.4,0.87825273]
[1728510112498,0.803,2370.0,2369.6,4.22009]
[1728510112499,0.05743874,2369.9,2369.6,4.22009]
[1728510112699,0.74983287,2369.9,2369.6,4.22009]
[1728510119215,0.74983287,2369.9,2369.5,4.22016]
[1728510119843,0.74983287,2369.9,2369.6,4.22011]
[1728510120242,0.74983287,2369.9,2368.9,1.53931865]
[1728510120243,1.32395047,2369.7,2368.9,1.53931865]
[1728510120442,1.32395047,2369.7,2368.7,1.3173791]
[1728510120443,8.16389299,2369.6,2369.1,4.22093]
[1728510120601,8.16389299,2369.6,2368.8,1.1937625]
[1728510120602,1.32395047,2369.5,2369.2,4.22072]
[1728510120964,4.44197145,2369.6,2369.2,4.22072]
[1728510120965,3.94369299,2369.6,2369.2,4.22072]
[1728510121142,0.05696164,2369.4,2369.2,4.22072]
[1728510121349,3.94369299,2369.6,2369.2,4.22072]
[1728510121548,0.05696164,2369.3,2369.2,4.22072]
[1728510121713,0.99290403,2369.5,2369.2,4.22072]
[1728510121917,0.05696164,2369.3,2369.2,4.22072]
[1728510122113,0.99290403,2369.5,2369.2,4.22072]
[1728510122321,0.05696164,2369.3,2369.2,4.22072]
[1728510122550,0.99290403,2369.5,2369.2,4.22072]
[1728510122752,0.05696164,2369.3,2369.2,4.22072]
[1728510122935,2.61974252,2369.6,2369.2,4.22072]
[1728510123110,0.05696164,2369.3,2369.2,4.22072]
[1728510123315,3.61264655,2369.6,2369.2,4.22072]
[1728510123515,0.05696164,2369.3,2369.2,4.22072]
[1728510123754,3.61264655,2369.6,2369.2,4.22072]
[1728510124049,0.05696164,2369.5,2369.2,4.22072]
[1728510125593,0.05696164,2369.5,2369.3,4.22065]
[1728510127867,0.05696164,2369.5,2369.4,4.22047]
[1728510128518,0.8125,2369.9,2369.7,4.21983]
[1728510128802,0.8125,2369.9,2369.7,4.21994]
[1728510129359,1.84424252,2370.1,2369.6,0.7826]
[1728510129360,0.8195,2370.1,2369.6,0.7826]
[1728510129561,15.31484204,2370.3,2369.9,8.43886]
[1728510129562,3.38803409,2370.3,2369.9,8.43886]
[1728510129761,3.38803409,2370.3,2370.0,4.21925]
[1728510130357,2.62714252,2370.3,2370.1,4.21917]
[1728510130801,0.7829,2370.3,2370.1,4.21917]
[1728510131472,3.33455364,2370.5,2370.1,4.21917]
[1728510132444,0.0545642,2370.4,2370.1,4.21917]
[1728510132599,0.0545642,2370.4,2370.2,4.21904]
[1728510132798,0.0545642,2370.4,2370.2,8.43801]
[1728510133016,0.0545642,2370.4,2370.3,4.21887]
[1728510134423,2.63354252,2370.7,2370.4,4.21863]
[1728510134740,4.77408182,2370.7,2370.4,4.21863]
[1728510135529,2.9298393,2370.7,2370.4,4.21863]
[1728510135841,2.9298393,2370.7,2370.3,4.21887]
[1728510135842,0.7893,2370.7,2370.3,4.21887]
[1728510136061,20.61609299,2370.9,2370.5,4.21839]
[1728510136062,17.20829299,2370.9,2370.5,4.21839]
[1728510136208,2.13405047,2370.9,2370.5,4.21839]
[1728510136404,0.8101,2370.9,2370.6,4.21831]
[1728510137231,3.16819299,2371.1,2370.5,4.21839]
[1728510137232,3.92959299,2371.1,2370.5,4.21839]
[1728510137456,5.56265304,2371.1,2370.7,4.21814]
[1728510138171,9.78011304,2371.1,2370.7,4.21814]
[1728510138374,5.56265304,2371.1,2370.7,4.21814]
[1728510138573,3.71841052,2371.1,2370.7,4.21808]
[1728510138743,3.71841052,2371.1,2370.8,4.2179]
[1728510139332,2.67504252,2371.3,2370.8,4.2179]
[1728510139535,2.67504252,2371.3,2370.9,4.21766]
[1728510140178,2.67504252,2371.3,2371.0,4.2176]
[1728510140385,0.8308,2371.3,2371.0,4.2176]
[1728510140707,0.8308,2371.3,2370.9,8.43537]
[1728510142573,4.21704,2371.4,2371.0,4.21761]
[1728510143085,22.77190486,2371.6,2371.0,4.21761]
[1728510143086,0.7843,2371.7,2371.4,4.21691]
[1728510143282,0.7843,2371.9,2371.5,4.21666]
[1728510143995,0.7843,2371.9,2371.5,8.43331]
[1728510145169,0.7843,2371.9,2371.5,4.21665]
[1728510145372,0.7843,2371.9,2371.5,8.43329]
[1728510145603,7.99347,2372.1,2371.6,5.01418]
[1728510145810,4.99347,2372.1,2371.6,5.01418]
[1728510146169,0.7778,2372.1,2371.6,5.01418]
[1728510146370,4.21585,2372.0,2371.6,5.01418]
[1728510146969,0.7778,2372.1,2371.6,5.01418]
[1728510147170,13.9824,2372.3,2371.8,4.21619]
[1728510147422,13.9824,2372.3,2371.8,8.43228]
[1728510147423,0.05642499,2372.0,2371.8,8.43228]
[1728510147719,0.05644164,2371.9,2371.8,4.21609]
[1728510148072,0.7524,2372.3,2371.8,4.21609]
[1728510148275,0.05644164,2372.2,2371.9,4.216]
[1728510148476,0.7524,2372.3,2371.9,4.216]
[1728510148726,0.05644164,2372.2,2371.9,4.216]
[1728510149025,0.05644164,2372.2,2371.9,5.059235]
[1728510149223,0.7524,2372.3,2371.9,5.059235]
[1728510149376,0.05644164,2372.1,2371.9,9.275155]
[1728510149577,0.7524,2372.3,2371.9,9.275155]
[1728510149794,0.05644164,2372.0,2371.9,5.059155]
[1728510149993,0.7524,2372.3,2371.9,4.21592]
[1728510150219,0.05644164,2372.0,2371.9,4.21592]
[1728510150707,0.7524,2372.3,2371.9,4.21592]
[1728510151021,0.05644164,2372.0,2371.9,4.21592]
[1728510151178,4.21515,2372.4,2372.0,4.21584]
[1728510151380,4.21515,2372.4,2372.0,5.03134]
[1728510151779,4.21493,2372.6,2372.1,8.43122]
[1728510152223,4.21493,2372.6,2372.1,4.21556]
[1728510152381,4.21493,2372.6,2372.1,8.51543321]
[1728510152721,4.21493,2372.6,2372.1,4.21556]
[1728510152883,4.21493,2372.6,2372.1,8.51544324]
[1728510153081,14.0385,2372.7,2372.1,5.24112692]
[1728510153423,18.25312,2372.7,2372.2,4.21541]
[1728510153814,22.46784,2372.7,2372.2,4.21541]
[1728510154125,18.25312,2372.7,2372.2,4.21541]
[1728510155419,4.21462,2372.7,2372.2,7.29969729]
[1728510155579,4.21462,2372.7,2372.2,11.4308]
[1728510155780,4.21462,2372.7,2372.2,7.2154]
[1728510156029,4.21479,2372.6,2372.2,4.2154]
[1728510156179,0.7592,2372.5,2372.2,4.2154]
[1728510156928,0.7592,2372.5,2372.0,4.21574]
[1728510156929,0.7592,2372.5,2372.1,4.21567]
[1728510157440,4.21456,2372.8,2372.1,4.21567]
[1728510157586,0.8215,2372.8,2372.3,4.21529]
[1728510157777,0.8215,2372.8,2372.4,4.21504]
[1728510157982,0.8215,2372.8,2372.4,4.29933248]
[1728510158205,0.8215,2372.8,2372.4,4.21504]
[1728510158618,4.21426,2372.9,2372.4,4.2993326]
[1728510158824,4.98099,2373.0,2372.5,4.21484]
[1728510159130,10.64738127,2373.0,2372.5,4.21484]
[1728510159279,6.43319127,2373.0,2372.5,4.21484]
[1728510159488,10.64738127,2373.0,2372.5,4.21484]
[1728510160698,6.43319127,2373.0,2372.5,4.21484]
[1728510160902,10.64735127,2373.0,2372.5,4.21484]
[1728510161114,6.43316127,2373.0,2372.5,4.21484]
[1728510161316,6.43316127,2373.0,2372.6,4.21478]
[1728510161632,4.98096,2373.0,2372.6,4.21478]
[1728510162006,9.19513,2373.0,2372.6,4.21478]
[1728510162189,9.19513,2373.0,2372.5,4.99245]
[1728510162538,0.05773995,2372.9,2372.5,4.99245]
[1728510165435,4.27200995,2372.9,2372.5,4.21495]
[1728510167054,4.21445,2372.8,2372.4,4.21504]
[1728510167362,4.27269821,2372.7,2372.3,5.04837]
[1728510171216,0.7738,2372.6,2372.2,4.21538]
[1728510171827,0.05807821,2372.5,2372.2,4.21538]
[1728510172251,0.05807821,2372.5,2372.3,4.21529]
[1728510182537,0.05807821,2372.5,2372.4,4.21514]
[1728510188917,0.7773,2372.8,2372.6,4.21475]
[1728510189223,0.05811701,2372.7,2372.6,4.21475]
[1728510189388,0.7773,2372.8,2372.6,4.21475]
[1728510189588,0.05811701,2372.7,2372.6,4.21475]
[1728510189922,0.7773,2372.8,2372.6,4.21475]
[1728510190219,0.05811701,2372.7,2372.6,4.21475]
[1728510190379,0.7773,2372.8,2372.6,4.21475]
[1728510190577,0.05811701,2372.7,2372.6,4.21475]
[1728510190922,0.7773,2372.8,2372.6,4.21475]
[1728510191225,0.05833579,2372.7,2372.6,4.21475]
[1728510191793,0.05833579,2372.7,2372.6,4.21475]
[1728510192230,0.7773,2372.8,2372.6,4.21475]
[1728510192423,0.05833579,2372.7,2372.6,4.21475]
[1728510192867,0.7773,2372.8,2372.6,4.21475]
[1728510193031,0.05833579,2372.7,2372.6,4.21475]
[1728510193395,1.32395047,2372.8,2372.6,4.21475]
[1728510193522,0.05833579,2372.7,2372.6,4.21475]
[1728510193722,1.32395047,2372.8,2372.6,4.21475]
[1728510194071,0.05833579,2372.7,2372.5,4.21494]
[1728510194378,1.32395047,2372.8,2372.5,4.21494]
[1728510194522,0.05833579,2372.6,2372.5,4.21494]
[1728510194722,1.32395047,2372.8,2372.5,4.21494]
[1728510194923,0.05833579,2372.7,2372.5,4.21494]
[1728510195125,1.32395047,2372.7,2372.5,4.21494]
[1728510195368,0.05833579,2372.6,2372.5,4.21494]
[1728510195726,1.32395047,2372.8,2372.5,4.21494]
[1728510195968,0.05833579,2372.7,2372.5,4.21494]
[1728510196186,1.38228626,2372.7,2372.5,4.21494]
[1728510196329,1.32395047,2372.7,2372.5,4.21494]
[1728510196672,0.05833579,2372.6,2372.5,4.21494]
[1728510197270,0.05833579,2372.6,2372.5,5.137394]
[1728510200508,0.05833579,2372.6,2372.5,4.21494]
[1728510201711,1.32395047,2372.8,2372.6,4.21461]
[1728510202016,1.32395047,2372.8,2372.7,4.2146]
[1728510203870,1.76526729,2372.8,2372.7,4.2146]
[1728510204369,1.76526729,2372.8,2372.5,4.21494]
[1728510204597,1.32801435,2372.7,2372.6,4.2147]
[1728510207410,1.38646097,2372.7,2372.6,4.2147]
[1728510209011,0.05844662,2372.7,2372.6,10.92414435]
[1728510209319,0.05844662,2372.7,2372.6,12.90492232]
[1728510209613,13.23,2373.2,2373.1,4.21389]
[1728510209780,15.37261435,2373.3,2373.1,4.21389]
[1728510210300,14.0446,2373.3,2373.1,4.21389]
[1728510210671,15.37261435,2373.3,2373.1,4.21389]
[1728510210986,13.23,2373.2,2373.1,4.21389]
[1728510211615,13.23,2373.3,2373.2,4.21371]
[1728510211834,14.55801435,2373.4,2373.2,4.21371]
[1728510212127,13.23,2373.3,2373.2,4.21371]
[1728510212337,13.23,2373.4,2373.2,4.21371]
[1728510212908,13.23,2373.4,2373.2,5.1483542]
[1728510213738,14.55801435,2373.5,2373.3,4.21337]
[1728510214030,13.23,2373.6,2373.5,4.21318]
[1728510214336,13.23,2373.7,2373.5,4.21318]
[1728510214493,2.10481435,2373.9,2373.5,4.21318]
[1728510214693,2.10481435,2373.9,2373.6,4.213]
[1728510215111,0.7768,2373.9,2373.6,4.213]
[1728510218630,0.7768,2373.9,2373.4,4.21318]
[1728510218631,0.7768,2373.9,2373.5,4.21316]
[1728510222250,0.05916675,2373.8,2373.5,4.21316]
[1728510222655,0.05916675,2373.8,2373.5,5.15893766]
[1728510224411,0.05916675,2373.8,2373.5,4.21316]
[1728510231460,0.05916675,2373.8,2373.6,4.21298]
[1728510233944,0.05916675,2373.8,2373.5,4.21303]
[1728510234381,0.7871,2373.7,2373.5,4.21303]
[1728510235181,0.7871,2373.7,2373.4,7.21333]
[1728510235350,0.7871,2373.7,2373.4,4.21333]
[1728510235539,0.0598758,2373.6,2373.4,4.21333]
[1728510235873,0.7729,2373.5,2373.4,4.21333]
[1728510236272,0.7729,2373.5,2373.2,8.63867759]
[1728510236573,0.8327758,2373.5,2373.2,8.63867759]
[1728510236934,0.8327758,2373.5,2373.2,8.42729]
[1728510238040,1.33733638,2373.5,2373.3,4.21351]
[1728510240853,0.8327758,2373.5,2373.3,4.21351]
[1728510241850,0.8327758,2373.5,2373.2,4.21361]
[1728510243200,0.8327758,2373.5,2373.3,4.21345]
[1728510244561,0.8327758,2373.5,2373.3,4.21353]
[1728510250996,0.0598758,2373.5,2373.3,8.4269]
[1728510251201,0.0598758,2373.5,2373.3,4.21344]
[1728510251697,0.0598758,2373.5,2373.3,5.04384]
[1728510252260,0.0598758,2373.5,2373.3,4.21344]
[1728510252852,0.0598758,2373.5,2373.4,5.03936]
[1728510253056,2.07588143,2374.1,2373.9,4.21234]
[1728510253295,1.32008143,2374.2,2374.0,4.21229]
[1728510253482,2.07588143,2374.3,2374.0,4.21229]
[1728510253811,2.07588143,2374.3,2374.1,4.2121]
[1728510253812,1.32008143,2374.3,2374.1,4.2121]
[1728510254098,1.32008143,2374.4,2374.1,4.2121]
[1728510254254,1.32008143,2374.3,2374.1,4.2121]
[1728510254457,1.32008143,2374.4,2374.1,4.2121]
[1728510255901,1.32008143,2374.4,2374.1,8.42406]
[1728510256206,2.15058143,2374.5,2374.2,4.21194]
[1728510257232,2.15058143,2374.5,2374.1,5.42806423]
[1728510257632,0.8305,2374.5,2374.1,5.42806423]
[1728510257940,0.8305,2374.5,2374.2,4.21193]
[1728510258798,0.8305,2374.5,2374.2,8.42375]
[1728510259015,0.8305,2374.5,2374.2,9.47447426]
[1728510259530,14.55008143,2374.7,2374.3,4.21165]
[1728510259833,1.32008143,2374.7,2374.4,4.98959]
[1728510260033,1.32008143,2374.7,2374.5,4.2114]
[1728510260369,2.13098143,2374.8,2374.5,4.2114]
[1728510260794,2.13098143,2374.8,2374.4,4.98967]